fUSD/lending_fUSD_20250519
["ID","MTS","AMOUNT","RATE_DAILY","PERIOD"]
[361579491,1747621867928,-500.39805272,0.00013973,2]
[361579492,1747621867937,-500.9107837,0.00013973,2]
[361579493,1747621867947,-500.0,0.00013973,2]
[361579494,1747621867957,-500.0,0.00013973,2]
[361579495,1747621867967,-160.988468,0.00013973,2]
[361579496,1747621867977,-210.120325,0.00013973,2]
[361579497,1747621867987,-210.120325,0.00013973,2]
[361579498,1747621867996,-337.60972,0.00013973,2]
[361579499,1747621868005,-337.60972,0.00013973,2]
[361579500,1747621868014,-151.0,0.00013973,2]
[361579501,1747621868024,-155.0212,0.00013973,2]
[361579502,1747621868033,-1173.615566,0.00013973,2]
[361579503,1747621868043,-1173.615566,0.00013973,2]
[361579504,1747621868052,-153.727565,0.00013973,2]
[361579505,1747621868061,-153.727565,0.00013973,2]
[361579506,1747621868071,-3762.0,0.00013979,2]
[361579507,1747621868080,-150.0,0.00013982,2]
[361579508,1747621868091,-900.35,0.00013989,2]
[361579509,1747621868100,-327.27408505,0.00013989,2]
[361579510,1747621868110,-277.745481,0.0001399,2]
[361579511,1747621868119,-151.0,0.0001399,2]
[361579512,1747621868129,-151.0,0.0001399,2]
[361579513,1747621868139,-154.093881,0.0001399,2]
[361579514,1747621868148,-281.324456,0.0001399,2]
[361579515,1747621868157,-164.81554,0.0001399,2]
[361579516,1747621868165,-164.81554,0.0001399,2]
[361579517,1747621868173,-348.908454,0.0001399,2]
[361579518,1747621868181,-348.908454,0.0001399,2]
[361579519,1747621868190,-151.0,0.0001399,2]
[361579520,1747621868198,-152.445254,0.0001399,2]
[361579521,1747621868207,-226.40448,0.0001399,2]
[361579522,1747621868215,-271.202948,0.0001399,2]
[361579523,1747621868226,-151.0,0.0001399,2]
[361579524,1747621868239,-151.0,0.0001399,2]
[361579525,1747621868253,-151.0,0.0001399,2]
[361579526,1747621868266,-1718.1201978,0.0001399,2]
[361579527,1747621868276,-1359.3918049,0.0001399,2]
[361579528,1747621868287,-1000.6634119,0.0001399,2]
[361579529,1747621868300,-3303.6030179,0.0001399,2]
[361579530,1747621868313,-2612.8430634,0.0001399,2]
[361579531,1747621868325,-1922.0831088,0.0001399,2]
[361579532,1747621868338,-349.898399,0.0001399,2]
[361579533,1747621868351,-349.898399,0.0001399,2]
[361579534,1747621868364,-283.4817658,0.0001399,2]
[361579535,1747621868377,-283.4817658,0.0001399,2]
[361579536,1747621868389,-283.4817658,0.0001399,2]
[361579537,1747621868400,-151.0,0.0001399,2]
[361579538,1747621868411,-151.0,0.0001399,2]
[361579539,1747621868425,-151.0,0.0001399,2]
[361579540,1747621868437,-158.445782,0.0001399,2]
[361579541,1747621868450,-151.0,0.0001399,2]
[361579542,1747621868464,-2369.15806,0.0001399,2]
[361579543,1747621868477,-158.445782,0.0001399,2]
[361579544,1747621868490,-8955.0872811,0.0001399,2]
[361579545,1747621868503,-8728.3413146,0.0001399,2]
[361579546,1747621868515,-8501.5953481,0.0001399,2]
[361579547,1747621868528,-2369.15806,0.0001399,2]
[361579548,1747621868541,-151.0,0.0001399,2]
[361579549,1747621868554,-151.0,0.0001399,2]
[361579550,1747621868567,-43149.2984133,0.0001399,2]
[361579551,1747621868580,-42056.742968,0.0001399,2]
[361579552,1747621868603,-40964.1875227,0.0001399,2]
[361579553,1747621868617,-500.0,0.0001399,2]
[361579554,1747621868631,-500.0,0.0001399,2]
[361579555,1747621868645,-500.0,0.0001399,2]
[361579556,1747621868657,-500.0,0.0001399,2]
[361579557,1747621868671,-500.0,0.0001399,2]
[361579558,1747621868683,-500.0,0.0001399,2]
[361579559,1747621868694,-500.0,0.0001399,2]
[361579560,1747621868706,-500.0,0.0001399,2]
[361579561,1747621868720,-500.0,0.0001399,2]
[361579562,1747621868735,-500.0,0.0001399,2]
[361579563,1747621868746,-500.0,0.0001399,2]
[361579564,1747621868757,-500.0,0.0001399,2]
[361579565,1747621868767,-500.0,0.0001399,2]
[361579566,1747621868778,-500.0,0.0001399,2]
[361579567,1747621868791,-500.0,0.0001399,2]
[361579568,1747621868805,-500.0,0.0001399,2]
[361579569,1747621868817,-500.0,0.0001399,2]
[361579570,1747621868827,-500.0,0.0001399,2]
[361579571,1747621868841,-500.0,0.0001399,2]
[361579572,1747621868852,-500.0,0.0001399,2]
[361579573,1747621868863,-500.0,0.0001399,2]
[361579574,1747621868874,-500.0,0.0001399,2]
[361579575,1747621868884,-500.0,0.0001399,2]
[361579576,1747621868895,-500.0,0.0001399,2]
[361579577,1747621868907,-500.0,0.0001399,2]
[361579578,1747621868919,-500.0,0.0001399,2]
[361579579,1747621868931,-500.0,0.0001399,2]
[361579580,1747621868942,-500.0,0.0001399,2]
[361579581,1747621868953,-500.0,0.0001399,2]
[361579582,1747621868966,-500.0,0.0001399,2]
[361579583,1747621868977,-500.0,0.0001399,2]
[361579584,1747621868989,-500.0,0.0001399,2]
[361579585,1747621869001,-500.0,0.0001399,2]
[361579586,1747621869012,-500.0,0.0001399,2]
[361579587,1747621869023,-500.0,0.0001399,2]
[361579588,1747621869034,-500.0,0.0001399,2]
[361579589,1747621869045,-500.0,0.0001399,2]
[361579590,1747621869057,-879.0,0.0001399,2]
[361579591,1747621869069,-151.0,0.0001399,2]
[361579592,1747621869081,-151.0,0.0001399,2]
[361579593,1747621869093,-151.0,0.0001399,2]
[361579594,1747621869105,-151.0,0.0001399,2]
[361579595,1747621869116,-151.0,0.0001399,2]
[361579596,1747621869127,-151.0,0.0001399,2]
[361579597,1747621869138,-1266.606688,0.0001399,2]
[361579598,1747621869149,-1266.606688,0.0001399,2]
[361579599,1747621869161,-500.0,0.0001399,2]
[361579600,1747621869172,-500.0,0.0001399,2]
[361579601,1747621869183,-500.0,0.0001399,2]
[361579602,1747621869195,-500.0,0.0001399,2]
[361579603,1747621869208,-500.0,0.0001399,2]
[361579604,1747621869219,-503.0,0.0001399,2]
[361579605,1747621869231,-357.530347,0.0001399,2]
[361579606,1747621869242,-151.0,0.0001399,2]
[361579607,1747621869253,-357.530347,0.0001399,2]
[361579608,1747621869264,-182.67961877,0.0001399,2]
[361579609,1747621869275,-29914.58792849,0.00013999,2]
[361579610,1747621869287,-171.1363192,0.00013999,2]
[361579611,1747621869298,-151.0,0.00013999,2]
[361579612,1747621869308,-262.214402,0.00013999,2]
[361579613,1747621869320,-307.702771,0.00013999,2]
[361579614,1747621869331,-307.702771,0.00013999,2]
[361579615,1747621869345,-210.440053,0.00013999,2]
[361579616,1747621869356,-173.969386,0.00013999,2]
[361579617,1747621869369,-164.81554,0.00013999,2]
[361579618,1747621869380,-164.81554,0.00013999,2]
[361579619,1747621869391,-348.908454,0.00013999,2]
[361579620,1747621869401,-348.908454,0.00013999,2]
[361579621,1747621869412,-151.0,0.00013999,2]
[361579622,1747621869423,-271.202948,0.00013999,2]
[361579623,1747621869434,-210.120325,0.00013999,2]
[361579624,1747621869445,-210.120325,0.00013999,2]
[361579625,1747621869456,-337.60972,0.00013999,2]
[361579626,1747621869467,-151.0,0.00013999,2]
[361579627,1747621869478,-337.60972,0.00013999,2]
[361579628,1747621869489,-151.0,0.00013999,2]
[361579629,1747621869500,-151.0,0.00013999,2]
[361579630,1747621869511,-900.35,0.00013999,2]
[361579631,1747621869522,-900.35,0.00013999,2]
[361579632,1747621869533,-900.35,0.00013999,2]
[361579633,1747621869544,-900.35,0.00013999,2]
[361579634,1747621869555,-900.35,0.00013999,2]
[361579635,1747621869566,-900.35,0.00013999,2]
[361579636,1747621869578,-900.35,0.00013999,2]
[361579637,1747621869591,-900.35,0.00013999,2]
[361579638,1747621869606,-900.35,0.00013999,2]
[361579639,1747621869616,-900.35,0.00013999,2]
[361579640,1747621869627,-900.35,0.00013999,2]
[361579641,1747621869638,-900.45931933,0.00013999,2]
[361579642,1747621869649,-1173.615566,0.00013999,2]
[361579643,1747621869660,-1173.615566,0.00013999,2]
[361579644,1747621869672,-151.0,0.00013999,2]
[361579645,1747621869683,-151.0,0.00013999,2]
[361579646,1747621869696,-158.445782,0.00013999,2]
[361579647,1747621869707,-153.727565,0.00013999,2]
[361579648,1747621869719,-2369.15806,0.00013999,2]
[361579649,1747621869730,-158.445782,0.00013999,2]
[361579650,1747621869742,-153.727565,0.00013999,2]
[361579651,1747621869753,-2369.15806,0.00013999,2]
[361579652,1747621869764,-151.0,0.00013999,2]
[361579653,1747621869776,-328.70217805,0.00013999,2]
[361579654,1747621869787,-817597.13927803,0.00014,2]
[361579655,1747621869798,-464104.29916746,0.00014,2]
[361579656,1747621870464,-1328.54783662,0.00014,2]
[361579657,1747621872777,-188312.49682048,0.00014,2]
[361579658,1747621872791,-111631.44090254,0.00014,2]
[361579659,1747621872805,-15468.83166515,0.00014,2]
[361579660,1747621872823,-313.88,0.00013808,2]
[361579661,1747621872833,-52025.3358526,0.00014,2]
[361579662,1747621872852,-306.83114443,0.00014,2]
[361579663,1747621872863,-5529.89117921,0.00014,2]
[361579664,1747621873430,-852.86238262,0.00013698,2]
[361579665,1747621873455,-1101.83761738,0.00013698,2]
[361579666,1747621873465,-284.28670469,0.00013698,2]
[361579667,1747621873474,-401.03406255,0.00013698,2]
[361579668,1747621873484,-29.8798017,0.00013698,2]
[361579669,1747621873495,-370.1201983,0.00013698,2]
[361579670,1747621873506,-100.50358157,0.00013698,2]
[361579671,1747621873518,-299.49641843,0.00013698,2]
[361579672,1747621873527,-133.65997465,0.00013698,2]
[361579673,1747621873540,-266.34002535,0.00013698,2]
[361579674,1747621873549,-400.0,0.00013698,2]
[361579675,1747621873559,-400.0,0.00013698,2]
[361579676,1747621873568,-400.0,0.00013698,2]
[361579677,1747621873578,-1954.7,0.00013808,2]
[361579678,1747621873591,-400.0,0.00013808,2]
[361579679,1747621873601,-400.0,0.00013808,2]
[361579680,1747621873611,-882.835,0.00013868,2]
[361579681,1747621873621,-1571.37480162,0.00013917,2]
[361579682,1747621873742,-383.32519838,0.00013917,2]
[361579683,1747621873752,-400.0,0.00013917,2]
[361579684,1747621873762,-400.0,0.00013917,2]
[361579685,1747621873771,-13241.63355803,0.00014,2]
[361579686,1747621873783,-1087.15275112,0.00014,2]
[361579687,1747621874871,-1024.83225468,0.00013665,2]
[361579688,1747621874882,-400.0,0.00013698,2]
[361579689,1747621874893,-400.0,0.00013698,2]
[361579690,1747621874903,-400.0,0.00013698,2]
[361579691,1747621874912,-400.0,0.00013698,2]
[361579692,1747621874921,-541.16,0.00013698,2]
[361579693,1747621874932,-400.0,0.00013698,2]
[361579694,1747621874941,-400.0,0.00013698,2]
[361579695,1747621874950,-400.0,0.00013808,2]
[361579696,1747621874960,-400.0,0.00013808,2]
[361579697,1747621874970,-400.0,0.00013808,2]
[361579698,1747621874979,-173.78,0.00013808,2]
[361579699,1747621874989,-400.0,0.00013808,2]
[361579700,1747621874998,-151.0,0.00013845,2]
[361579701,1747621875007,-2029.80505838,0.00013866,2]
[361579702,1747621875017,-400.0,0.00013917,2]
[361579703,1747621875027,-400.0,0.00013917,2]
[361579704,1747621875037,-400.0,0.00013917,2]
[361579705,1747621875047,-1790.47715013,0.00014,2]
[361579706,1747621875059,-279.25095003,0.00014,2]
[361579707,1747621875084,-388329.87457143,0.00014,2]
[361579708,1747621875096,-5174.66322734,0.00014,2]
[361579709,1747621875108,-4686.97839802,0.00014,2]
[361579710,1747621875130,-373.6646,0.00013808,2]
[361579711,1747621875266,-120.2754,0.00013808,2]
[361579712,1747621875275,-730.17987964,0.00014,2]
[361579713,1747621913785,446.04,0.00011015,2]
[361579714,1747621979537,261.13,0.00027397,120]
[361579715,1747622087177,400.0,0.00027397,120]
[361579716,1747622498363,1196.41878,0.0002739,120]
[361579717,1747622676557,681.0,0.00027,120]
[361579718,1747622705710,410.66,0.000266,120]
[361579719,1747622832168,-1074.68878144,0.00012339,2]
[361579720,1747622950096,-2660.1368935,0.00012339,2]
[361579721,1747622967218,-265.17432506,0.00012339,2]
[361579722,1747622967240,-531.15,0.0001236,2]
[361579723,1747622967264,-183.67567494,0.00012363,2]
[361579724,1747623021877,195.02,0.00012026,2]
[361579726,1747623032214,-347.47432506,0.00012363,2]
[361579727,1747623032223,-12.51615594,0.00012365,2]
[361579728,1747623032235,-187.48384406,0.00012365,2]
[361579729,1747623032244,-531.15,0.00012366,2]
[361579731,1747623032253,-1000.0,0.00012367,2]
[361579733,1747623032263,-531.15,0.0001237,2]
[361579735,1747623032272,-531.15,0.00012373,2]
[361579737,1747623032281,-531.15,0.00012376,2]
[361579739,1747623032291,-531.15,0.00012379,2]
[361579740,1747623032301,-531.15,0.00012383,2]
[361579741,1747623032310,-135.61555112,0.00012386,2]
[361579742,1747623032341,-395.53444888,0.00012386,2]
[361579743,1747623032351,-531.15,0.00012389,2]
[361579744,1747623032361,-531.15,0.00012392,2]
[361579745,1747623032370,-531.15,0.00012396,2]
[361579746,1747623032379,-531.15,0.00012399,2]
[361579747,1747623032388,-1200.0,0.00012401,2]
[361579748,1747623032398,-531.15,0.00012402,2]
[361579749,1747623032408,-531.15,0.00012405,2]
[361579750,1747623032418,-300.0,0.00012408,2]
[361579751,1747623032427,-531.15,0.00012409,2]
[361579752,1747623032437,-531.15,0.00012412,2]
[361579753,1747623032446,-531.15,0.00012415,2]
[361579755,1747623032455,-531.15,0.00012418,2]
[361579757,1747623032464,-10.96555112,0.00012422,2]
[361579762,1747623032501,-520.18444888,0.00012422,2]
[361579764,1747623032510,-208.89,0.00012443,2]
[361579766,1747623032519,-200.0,0.00012531,2]
[361579768,1747623032529,-150.0,0.00012531,2]
[361579770,1747623032538,-465.14,0.00012619,2]
[361579772,1747623032548,-165.45,0.00012619,2]
[361579774,1747623032558,-200.0,0.00012664,2]
[361579776,1747623032568,-2191.94,0.00012819,2]
[361579778,1747623032577,-1088.60719015,0.00012842,2]
[361579785,1747623032680,-10325.64969051,0.00012842,2]
[361579786,1747623032691,-2913.82770783,0.00012842,2]
[361579787,1747623032718,-362.5,0.00012842,2]
[361579788,1747623032730,-855.83944016,0.00012842,2]
[361579795,1747623037867,-393.855,0.00012842,2]
[361579796,1747623037920,-1702.41490624,0.00012842,2]
[361579797,1747623037932,-4268.48606511,0.00012842,2]
[361579798,1747623037941,-358.6,0.00012861,2]
[361579799,1747623037950,-346.15,0.00012972,2]
[361579800,1747623037961,-349.47,0.00012972,2]
[361579801,1747623037978,-1006.407,0.00012999,2]
[361579802,1747623037988,-2922.87,0.00013,2]
[361579803,1747623037997,-2286.04154854,0.00013,2]
[361579804,1747623038010,-636.82845146,0.00013,2]
[361579805,1747623038020,-609.59671261,0.00013,2]
[361579806,1747623038043,-1245.43468548,0.00013,2]
[361579807,1747623038055,-1067.83860191,0.00013,2]
[361579808,1747623038064,-104.68977609,0.00013,2]
[361579809,1747623038076,-2052.2052,0.00013,2]
[361579810,1747623038087,-765.97502391,0.00013,2]
[361579811,1747623038096,-1297.60113609,0.00013,2]
[361579812,1747623038107,-1311.71080284,0.00013,2]
[361579813,1747623038118,-313.55806107,0.00013,2]
[361579814,1747623038127,-171.52,0.0001304,2]
[361579815,1747623038137,-206.06,0.00013059,2]
[361579816,1747623038147,-207.4,0.00013116,2]
[361579818,1747623038155,-156.0,0.00013116,2]
[361579820,1747623038166,-155.0,0.00013116,2]
[361579821,1747623038175,-668.65185757,0.00013116,2]
[361579822,1747623038186,-151.0,0.00013116,2]
[361579823,1747623038197,-430.07,0.00013178,2]
[361579825,1747623038207,-150.0,0.00013178,2]
[361579826,1747623038218,-453.03,0.00013178,2]
[361579828,1747623038228,-170.07,0.00013178,2]
[361579830,1747623038237,-353.17,0.00013178,2]
[361579832,1747623038246,-804.92,0.00013241,2]
[361579834,1747623038255,-170.07,0.00013278,2]
[361579836,1747623038264,-170.07,0.00013278,2]
[361579838,1747623038274,-170.07,0.00013278,2]
[361579840,1747623038283,-170.07,0.00013278,2]
[361579842,1747623038292,-170.07,0.00013278,2]
[361579844,1747623038304,-339.53,0.00013278,2]
[361579846,1747623038313,-446.04,0.00013278,2]
[361579848,1747623038322,-433.03945951,0.00013377,2]
[361579850,1747623038331,-500.0,0.00013377,2]
[361579852,1747623038340,-300.71731424,0.00013377,2]
[361579856,1747623038365,-199.28268576,0.00013377,2]
[361579858,1747623038374,-181.86474679,0.00013377,2]
[361579860,1747623038383,-500.0,0.00013377,2]
[361579862,1747623038392,-500.0,0.00013377,2]
[361579864,1747623038401,-500.0,0.00013377,2]
[361579866,1747623038413,-418.92165356,0.00013377,2]
[361579868,1747623038423,-500.0,0.00013377,2]
[361579870,1747623038432,-500.0,0.00013377,2]
[361579872,1747623038441,-500.0,0.00013377,2]
[361579874,1747623038451,-182.72904291,0.00013377,2]
[361579876,1747623038460,-500.0,0.00013377,2]
[361579877,1747623038469,-349.47677234,0.00013377,2]
[361579878,1747623038478,-500.0,0.00013377,2]
[361579879,1747623038487,-500.0,0.00013377,2]
[361579880,1747623038496,-500.0,0.00013377,2]
[361579881,1747623038505,-500.0,0.00013377,2]
[361579882,1747623038514,-2314.2,0.00013378,2]
[361579883,1747623038523,-150.0,0.00013378,2]
[361579884,1747623038532,-422.29,0.00013378,2]
[361579885,1747623038541,-450.46,0.00013378,2]
[361579886,1747623038549,-164.47,0.00013378,2]
[361579887,1747623038558,-353.24,0.00013378,2]
[361579888,1747623038567,-353.24,0.00013378,2]
[361579889,1747623038576,-150.0,0.00013378,2]
[361579890,1747623038585,-150.0,0.00013378,2]
[361579891,1747623038594,-150.0,0.00013378,2]
[361579892,1747623038602,-353.24,0.00013378,2]
[361579893,1747623038611,-150.0,0.00013378,2]
[361579894,1747623038620,-150.0,0.00013378,2]
[361579895,1747623038629,-150.0,0.00013378,2]
[361579896,1747623038637,-150.0,0.00013378,2]
[361579897,1747623038647,-200.0,0.00013573,2]
[361579898,1747623038655,-3580.69172065,0.00013598,2]
[361579899,1747623038664,-1003.150174,0.00013598,2]
[361579900,1747623038673,-553.8104388,0.00013598,2]
[361579901,1747623038682,-2254.2603,0.00013598,2]
[361579902,1747623038690,-2500.0,0.00013598,2]
[361579903,1747623038699,-200.0,0.00013599,2]
[361579904,1747623038709,-150.0,0.000136,2]
[361579905,1747623038720,-300.0,0.00013615,2]
[361579906,1747623038730,-255.0,0.00013621,2]
[361579907,1747623038742,-3580.69172061,0.00013632,2]
[361579908,1747623038752,-1003.15017395,0.00013632,2]
[361579909,1747623038767,-1680.0,0.00013641,2]
[361579910,1747623038778,-156.84412578,0.00013664,2]
[361579911,1747623038787,-3580.69172061,0.00013665,2]
[361579912,1747623038796,-1003.15017395,0.00013665,2]
[361579913,1747623038805,-360.59383757,0.00013673,2]
[361579914,1747623038815,-200.0,0.00013687,2]
[361579915,1747623038826,-170.28067335,0.00013697,2]
[361579916,1747623038837,-155.51969784,0.00013697,2]
[361579917,1747623038847,-178.28404886,0.00013697,2]
[361579918,1747623038857,-194.39950406,0.00013697,2]
[361579919,1747623038868,-400.56212363,0.00013698,2]
[361579920,1747623038876,-402.42779373,0.00013698,2]
[361579921,1747623038886,-465.76308752,0.00013698,2]
[361579922,1747623038895,-400.0,0.00013698,2]
[361579923,1747623038904,-401.62663192,0.00013698,2]
[361579924,1747623038913,-205.66495432,0.00013698,2]
[361579925,1747623038922,-477.12505177,0.00013698,2]
[361579926,1747623038931,-400.0,0.00013698,2]
[361579927,1747623038940,-400.0,0.00013698,2]
[361579928,1747623038949,-400.0,0.00013698,2]
[361579929,1747623038959,-204.47003954,0.00013698,2]
[361579930,1747623038971,-400.0,0.00013698,2]
[361579931,1747623038980,-341.57129826,0.00013698,2]
[361579932,1747623038989,-206.17575349,0.00013698,2]
[361579933,1747623038998,-400.0,0.00013698,2]
[361579934,1747623039008,-500.0,0.00013698,2]
[361579935,1747623039017,-500.0,0.00013698,2]
[361579936,1747623039026,-500.0,0.00013698,2]
[361579937,1747623039035,-3653.814201,0.00013698,2]
[361579938,1747623039045,-1290.17406,0.00013698,2]
[361579939,1747623039054,-400.0,0.00013698,2]
[361579940,1747623039063,-400.0,0.00013698,2]
[361579941,1747623039072,-400.0,0.00013698,2]
[361579942,1747623039081,-400.0,0.00013698,2]
[361579943,1747623039090,-400.0,0.00013698,2]
[361579944,1747623039099,-400.0,0.00013698,2]
[361579945,1747623039108,-764.11,0.00013698,2]
[361579946,1747623039117,-400.0,0.00013698,2]
[361579947,1747623039126,-1045.976411,0.00013698,2]
[361579948,1747623039135,-471.15433203,0.00013698,2]
[361579949,1747623039145,-400.0,0.00013698,2]
[361579950,1747623039154,-400.0,0.00013698,2]
[361579951,1747623039163,-400.0,0.00013698,2]
[361579952,1747623039172,-250.76352385,0.00013698,2]
[361579953,1747623039181,-400.0,0.00013698,2]
[361579954,1747623039191,-400.0,0.00013698,2]
[361579955,1747623039199,-400.0,0.00013698,2]
[361579956,1747623039208,-567.34,0.00013698,2]
[361579957,1747623039218,-400.0,0.00013698,2]
[361579958,1747623039227,-400.0,0.00013698,2]
[361579959,1747623039236,-400.0,0.00013698,2]
[361579960,1747623039245,-492.45961483,0.00013698,2]
[361579961,1747623039254,-400.0,0.00013698,2]
[361579962,1747623039263,-475.40208848,0.00013698,2]
[361579963,1747623039272,-400.0,0.00013698,2]
[361579964,1747623039282,-400.0,0.00013698,2]
[361579965,1747623039291,-400.0,0.00013698,2]
[361579966,1747623039301,-400.0,0.00013698,2]
[361579967,1747623039310,-401.62,0.00013698,2]
[361579968,1747623039319,-400.0,0.00013698,2]
[361579969,1747623039328,-400.0,0.00013698,2]
[361579970,1747623039337,-400.0,0.00013698,2]
[361579971,1747623039347,-400.0,0.00013698,2]
[361579972,1747623039357,-400.0,0.00013698,2]
[361579973,1747623039366,-478.85,0.00013698,2]
[361579974,1747623039376,-400.0,0.00013698,2]
[361579975,1747623039385,-400.0,0.00013698,2]
[361579976,1747623039395,-400.0,0.00013698,2]
[361579977,1747623039405,-495.91,0.00013698,2]
[361579978,1747623039415,-400.0,0.00013698,2]
[361579979,1747623039425,-500.0,0.00013698,2]
[361579980,1747623039434,-500.0,0.00013698,2]
[361579981,1747623039443,-400.0,0.00013698,2]
[361579982,1747623039455,-400.0,0.00013698,2]
[361579983,1747623039466,-400.0,0.00013698,2]
[361579984,1747623039475,-400.0,0.00013698,2]
[361579985,1747623039485,-400.0,0.00013698,2]
[361579986,1747623039496,-500.0,0.00013698,2]
[361579987,1747623039507,-500.0,0.00013698,2]
[361579988,1747623039517,-500.0,0.00013698,2]
[361579989,1747623039527,-400.0,0.00013698,2]
[361579990,1747623039537,-529.33,0.00013698,2]
[361579991,1747623039547,-400.0,0.00013698,2]
[361579992,1747623039557,-400.0,0.00013698,2]
[361579993,1747623039566,-400.0,0.00013698,2]
[361579994,1747623039575,-400.0,0.00013698,2]
[361579995,1747623039584,-400.0,0.00013698,2]
[361579996,1747623039595,-400.0,0.00013698,2]
[361579997,1747623039605,-400.0,0.00013698,2]
[361579998,1747623039616,-400.0,0.00013698,2]
[361579999,1747623039626,-222.11977434,0.00013698,2]
[361580081,1747623040490,-175.90424505,0.00013598,2]
[361580083,1747623040500,-177.88022566,0.00013698,2]
[361580085,1747623040510,-400.0,0.00013698,2]
[361580087,1747623040520,-400.0,0.00013698,2]
[361580089,1747623040530,-400.0,0.00013698,2]
[361580091,1747623040541,-400.0,0.00013698,2]
[361580093,1747623040552,-400.0,0.00013698,2]
[361580095,1747623040560,-400.0,0.00013698,2]
[361580097,1747623040570,-1000.0,0.00013698,2]
[361580100,1747623040579,-400.0,0.00013698,2]
[361580102,1747623040589,-400.0,0.00013698,2]
[361580104,1747623040598,-400.0,0.00013698,2]
[361580106,1747623040607,-450.35,0.00013698,2]
[361580107,1747623040616,-400.0,0.00013698,2]
[361580108,1747623040624,-400.0,0.00013698,2]
[361580109,1747623040634,-80.19424943,0.00013698,2]
[361580112,1747623040664,-320.98503251,0.00013698,2]
[361580114,1747623040674,-130.66107548,0.00013698,2]
[361580117,1747623040691,-269.33892452,0.00013698,2]
[361580119,1747623040700,-400.0,0.00013698,2]
[361580121,1747623040708,-333.20768821,0.00013698,2]
[361580124,1747623040732,-66.79231179,0.00013698,2]
[361580126,1747623040744,-400.0,0.00013698,2]
[361580128,1747623040754,-2274.52344468,0.00013698,2]
[361580130,1747623040765,-400.0,0.00013698,2]
[361580132,1747623040776,-400.0,0.00013698,2]
[361580133,1747623040786,-400.0,0.00013698,2]
[361580134,1747623040795,-400.0,0.00013698,2]
[361580135,1747623040807,-252.09743555,0.00013698,2]
[361580136,1747623040816,-400.0,0.00013698,2]
[361580137,1747623040826,-400.0,0.00013698,2]
[361580138,1747623040835,-400.0,0.00013698,2]
[361580139,1747623040844,-400.0,0.00013698,2]
[361580140,1747623040853,-400.0,0.00013698,2]
[361580141,1747623040862,-400.0,0.00013698,2]
[361580142,1747623040871,-400.0,0.00013698,2]
[361580143,1747623040880,-400.0,0.00013698,2]
[361580144,1747623040889,-400.0,0.00013698,2]
[361580145,1747623040898,-400.0,0.00013698,2]
[361580146,1747623040908,-586.99,0.00013698,2]
[361580147,1747623040918,-400.0,0.00013698,2]
[361580148,1747623040929,-400.0,0.00013698,2]
[361580149,1747623040939,-582.81,0.00013698,2]
[361580150,1747623040949,-400.0,0.00013698,2]
[361580151,1747623040960,-400.0,0.00013698,2]
[361580152,1747623040971,-400.0,0.00013698,2]
[361580153,1747623040980,-400.0,0.00013698,2]
[361580154,1747623040989,-400.0,0.00013698,2]
[361580155,1747623040999,-400.0,0.00013698,2]
[361580156,1747623041010,-400.0,0.00013698,2]
[361580157,1747623041020,-400.19389544,0.00013698,2]
[361580158,1747623041030,-430.3,0.00013698,2]